[Event "ISR-ch Youth 2019"]
[Site "Jerusalem"]
[Date "2019.04.11"]
[Round "2.2"]
[White "Kochavi, Ori"]
[Black "Globus, Or"]
[Result "1/2-1/2"]
[ECO "A38"]
[WhiteElo "2200"]
[BlackElo "2346"]
[Annotator "NA"]
[PlyCount "82"]
[EventDate "2019.04.11"]
[EventType "swiss"]
[EventCountry "ISR"]
[SourceTitle "playchess.com"]
[Source "ChessBase"]
[SourceQuality "1"]
[TimeControl "5400+30"]

1. Nf3 {[%emt 0:00:00]} Nf6 {[%emt 0:00:00]} 2. c4 {[%emt 0:00:00]} g6 {[%emt 0:02:46]} 3. Nc3 {[%emt 0:00:36]} c5 {[%emt 0:00:15]} 4. g3 {[%emt 0:00:59]} Bg7 {[%emt 0:00:15]} 5. Bg2 {[%emt 0:01:05]} Nc6 {[%emt 0:01:10]} 6. O-O {[%emt 0:00:18]} O-O {[%emt 0:01:01]} 7. d3 {[%emt 0:02:02]} b6 {[%emt 0:06:43]} 8. a3 {[%emt 0:02:22] A38: Symmetrical English vs ...g6: 4 Bg2 Bg7 5 Nf3 Nf6} (8. e4 Bb7 9. Bg5 h6 10. Bf4 d6 11. h3 Ne8 12. Be3 Nd4 13. Nh4 e6 14. f4 Qd7 15. Qd2 Kh7 16. Rae1 f5 {0-1 (62) Radjabov,T (2713)-Le,Q (2703) Beijing 2013}) 8... Bb7 {[%emt 0:01:43]} 9. Rb1 {[%emt 0:02:08]} d5 {[%emt 0:07:08]} 10. b4 {[%emt 0:02:24]} cxb4 {[%emt 0:05:00]} 11. axb4 {[%emt 0:00:06]} dxc4 {[%emt 0:03:39]} 12. dxc4 {[%emt 0:00:16]} Qxd1 {[%emt 0:00:03]} 13. Rxd1 {[%emt 0:00:23]} Ng4 $146 {[%emt 0:01:09]} ({Predecessor:} 13... Rfd8 14. Bd2 Nd4 15. Bf4 Nh5 16. Nxd4 Bxg2 17. Kxg2 Nxf4+ 18. gxf4 Rxd4 19. Rxd4 Bxd4 {½-½ (23) Stanescu,C-Kluge,T Regensburg 1996}) 14. Na4 {[%emt 0:05:50]} Rad8 {[%emt 0:01:40]} 15. Ba3 {[%emt 0:02:27]} Rxd1+ {[%emt 0:16:21]} 16. Rxd1 {[%emt 0:00:04]} Rd8 {[%emt 0:00:05]} 17. Rxd8+ {[%emt 0:01:47]} Nxd8 {[%emt 0:00:13]} 18. b5 {[%emt 0:02:20]} Kf8 $1 {[%emt 0:04:54]} 19. h3 {[%emt 0:09:39]} Ne5 {[%emt 0:03:39]} 20. Nxe5 {[%emt 0:02:44]} Bxe5 {[%emt 0:01:09]} 21. c5 {[%emt 0:02:07]} bxc5 {[%emt 0:05:26]} 22. Bxc5 {[%emt 0:02:58]} Bb8 {[%emt 0:02:50]} 23. Nc3 {[%emt 0:02:18]} Bxg2 {[%emt 0:00:25]} 24. Kxg2 {[%emt 0:00:04]} Nb7 {[%emt 0:00:20]} 25. Bd4 $11 {[%emt 0:00:10]} Ke8 {[%emt 0:05:20]} 26. Kf3 {[%emt 0:02:45]} Kd7 {[%emt 0:02:16]} 27. Ke4 {[%emt 0:02:02]} e6 {[%emt 0:02:13]} 28. Kd3 {[%emt 0:02:56]} e5 {[%emt 0:06:48]} 29. Be3 {[%emt 0:01:27]} Nd6 {[%emt 0:02:41]} 30. Kc2 {[%emt 0:03:27]} f5 {[%emt 0:01:29]} 31. Kb3 {[%emt 0:01:17]} Kc8 {[%emt 0:01:10]} 32. Kb4 {[%emt 0:01:59]} Kb7 {[%emt 0:01:33]} 33. f3 {[%emt 0:09:15]} a6 {[%emt 0:01:55]} 34. b6 {[%emt 0:08:50]} Kc6 {[%emt 0:00:39]} 35. Bf2 {[%emt 0:02:18]} Nb7 {[%emt 0:03:24]} 36. Kc4 {[%emt 0:00:55]} Bd6 {[%emt 0:00:00]} 37. Na4 {[%emt 0:00:23]} Na5+ {[%emt 0:00:00]} 38. Kd3 {[%emt 0:00:36]} Kb5 {[%emt 0:00:00]} 39. Nc3+ {[%emt 0:00:06]} Kc6 {[%emt 0:00:00]} 40. Na4 {[%emt 0:00:14]} Kb5 {[%emt 0:00:00]} 41. Nc3+ {[%emt 0:00:09]} Kc6 {[%emt 0:00:00]} 1/2-1/2

[Event "ISR-ch Youth 2019"]
[Site "Jerusalem"]
[Date "2019.04.11"]
[Round "2.4"]
[White "Musyuk, Lior"]
[Black "Verny, David"]
[Result "1-0"]
[ECO "C56"]
[WhiteElo "2231"]
[BlackElo "1940"]
[Annotator "NA"]
[PlyCount "57"]
[EventDate "2019.04.11"]
[EventType "swiss"]
[EventCountry "ISR"]
[SourceTitle "playchess.com"]
[Source "ChessBase"]
[SourceQuality "1"]
[TimeControl "5400+30"]

1. e4 {[%emt 0:00:00]} e5 {[%emt 0:00:00]} 2. Nf3 {[%emt 0:00:00]} Nc6 {[%emt 0:00:00]} 3. d4 {[%emt 0:00:11]} exd4 {[%emt 0:00:00]} 4. Bc4 {[%emt 0:00:12]} Nf6 {[%emt 0:00:00]} 5. e5 {[%emt 0:00:20]} d5 {[%emt 0:00:00]} 6. Bb5 {[%emt 0:00:11]} Ne4 {[%emt 0:00:06]} 7. Nxd4 {[%emt 0:00:24]} Bd7 {[%emt 0:00:19]} 8. Bxc6 {[%emt 0:00:24]} bxc6 {[%emt 0:00:10]} 9. O-O {[%emt 0:00:20]} Bc5 {[%emt 0:00:05]} 10. f3 {[%emt 0:00:52]} Ng5 {[%emt 0:00:08]} 11. Be3 {[%emt 0:00:08]} Bb6 {[%emt 0:00:05]} 12. Qd2 {[%emt 0:04:43]} Ne6 {[%emt 0:03:36] C56: Two Knights: 4 d4 exd4 5 0-0 Nxe4} (12... h6 13. Nb3 Qe7 14. Nc3 O-O 15. Rae1 Rad8 16. Qf2 Ne6 17. f4 f5 18. Rd1 g5 19. Ne2 Be8 20. Rd2 {0-1 (54) Battulga,N (2421)-Sanikidze,T (2497) Batumi 2018}) 13. Nb3 {[%emt 0:04:04]} Bc8 $146 {[%emt 0:02:10]} ({Predecessor:} 13... f6 14. f4 fxe5 15. Bxb6 cxb6 16. fxe5 Qg5 17. Nc3 Qxd2 18. Nxd2 Ke7 19. Ne2 Rhf8 20. c3 {0-1 (58) Crespo de Oliveira,L (2209)-Proudian,A (2354) Pocos de Caldas 2014}) 14. f4 {[%emt 0:09:55]} d4 {[%emt 0:13:17]} 15. Bf2 {[%emt 0:00:27]} Qd5 {[%emt 0:00:28]} 16. f5 {[%emt 0:06:04]} Nc5 $1 {[%emt 0:00:17]} 17. Qxd4 {[%emt 0:16:05]} Nxb3 {[%emt 0:01:06]} 18. Qxd5 {[%emt 0:00:09]} cxd5 {[%emt 0:01:06]} 19. axb3 {[%emt 0:04:06]} d4 {[%emt 0:00:12]} 20. c3 {[%emt 0:51:25]} c5 {[%emt 0:04:39]} ({Better is} 20... Bxf5 $14 21. Bxd4 (21. cxd4 Be6 $14) 21... Bd3) 21. b4 {[%emt 0:00:00]} cxb4 {[%emt 0:00:28]} 22. Bxd4 {[%emt 0:00:00]} Bxd4+ {[%emt 0:01:22]} 23. cxd4 {[%emt 0:00:00]} O-O {[%emt 0:00:31]} 24. Nd2 {[%emt 0:00:00]} Rd8 {[%emt 0:02:35]} 25. Nb3 {[%emt 0:00:00]} a5 {[%emt 0:00:22]} 26. Rxa5 {[%emt 0:00:00]} Rxa5 $18 {[%emt 0:00:07]} 27. Nxa5 {[%emt 0:00:00]} Rxd4 {[%emt 0:00:18]} 28. Nc6 {[%emt 0:00:00]} Rc4 {[%emt 0:00:13]} 29. Rd1 {[%emt 0:00:00]} 1-0

[Event "ISR-ch Youth 2019"]
[Site "Jerusalem"]
[Date "2019.04.11"]
[Round "2.5"]
[White "Milikow, Elie"]
[Black "Weissberg, Harel"]
[Result "1-0"]
[ECO "B45"]
[WhiteElo "2199"]
[BlackElo "1709"]
[Annotator "NA"]
[PlyCount "63"]
[EventDate "2019.04.11"]
[EventType "swiss"]
[EventCountry "ISR"]
[SourceTitle "playchess.com"]
[Source "ChessBase"]
[SourceQuality "1"]
[TimeControl "5400+30"]

1. e4 {[%emt 0:00:00]} c5 {[%emt 0:00:00]} 2. Nf3 {[%emt 0:00:26]} e6 {[%emt 0:00:00]} 3. d4 {[%emt 0:00:25]} cxd4 {[%emt 0:00:33]} 4. Nxd4 {[%emt 0:00:07]} Nf6 {[%emt 0:00:29]} 5. Nc3 {[%emt 0:00:35]} Nc6 {[%emt 0:00:50]} 6. Ndb5 {[%emt 0:03:45]} Bb4 {[%emt 0:01:36]} 7. a3 {[%emt 0:00:55]} Bxc3+ {[%emt 0:00:26]} 8. Nxc3 {[%emt 0:00:08]} d5 {[%emt 0:00:25]} 9. exd5 {[%emt 0:02:27]} exd5 {[%emt 0:00:48]} 10. Bd3 {[%emt 0:00:53]} O-O {[%emt 0:02:16]} 11. O-O {[%emt 0:00:59]} d4 {[%emt 0:02:29]} 12. Ne2 {[%emt 0:07:59]} Re8 {[%emt 0:03:57]} 13. b4 {[%emt 0:05:55] B45: Sicilian Four Knights} (13. h3 Re5 14. Bf4 Rd5 15. Ng3 Ne5 16. Bxe5 Rxe5 17. Qf3 Qb6 18. Qf4 Re8 19. Ne2 Rd8 20. Rfd1 Be6 21. Nxd4 Qxb2 22. Nxe6 fxe6 {1-0 (49) Andriasian,Z (2588)-Petrov,M (2535) Kalamaria 2010}) 13... a6 {[%emt 0:17:24]} 14. Bb2 {[%emt 0:00:09]} Kh8 $146 {[%emt 0:03:35]} ({Predecessor:} 14... Bg4 15. f3 Be6 16. Rf2 Rc8 17. Nxd4 Nxd4 18. Bxd4 Bc4 19. Bf5 Rc6 20. c3 Nd5 {0-1 (41) Rodriguez Gonzalez,I-Jimenez Lopez,A (2079) Formigal 2002}) 15. Bc4 {[%emt 0:12:37]} Bg4 {[%emt 0:06:55]} 16. f3 {[%emt 0:03:42]} Be6 {[%emt 0:02:14]} 17. Bxe6 {[%emt 0:04:39]} Rxe6 {[%emt 0:02:46]} 18. Nf4 {[%emt 0:02:12]} Rd6 {[%emt 0:03:04]} 19. Qe2 {[%emt 0:08:57]} Nd5 {[%emt 0:02:07]} 20. Nxd5 {[%emt 0:01:08]} Rxd5 {[%emt 0:00:46]} 21. Rad1 {[%emt 0:05:12]} Qb6 $11 {[%emt 0:03:38]} 22. Qf2 {[%emt 0:00:16]} Rad8 {[%emt 0:02:34]} 23. c4 {[%emt 0:00:26]} R5d7 {[%emt 0:02:11]} 24. Rfe1 {[%emt 0:00:55]} Qc7 {[%emt 0:04:10]} 25. c5 {[%emt 0:25:18]} Rd5 {[%emt 0:06:08]} 26. Rd2 {[%emt 0:01:17]} Qd7 {[%emt 0:01:16]} 27. Qg3 {[%emt 0:01:42]} h6 {[%emt 0:08:04]} 28. h4 {[%emt 0:00:26]} Ne7 {[%emt 0:01:37]} 29. Red1 {[%emt 0:02:31]} Nf5 {[%emt 0:03:08]} 30. Qf4 {[%emt 0:00:25]} Ne3 {[%emt 0:01:19]} 31. Bxd4 {[%emt 0:00:07]} Nf5 {[%emt 0:02:22]} 32. Bxg7+ {[%emt 0:00:06]} 1-0

[Event "ISR-ch Youth 2019"]
[Site "Jerusalem"]
[Date "2019.04.11"]
[Round "2.6"]
[White "Pevzner, Maks"]
[Black "Vagman, Roy"]
[Result "1/2-1/2"]
[ECO "A48"]
[WhiteElo "1643"]
[BlackElo "1959"]
[Annotator "NA"]
[PlyCount "132"]
[EventDate "2019.04.11"]
[EventType "swiss"]
[EventCountry "ISR"]
[SourceTitle "playchess.com"]
[Source "ChessBase"]
[SourceQuality "1"]
[TimeControl "5400+30"]

1. d4 {[%emt 0:00:00]} Nf6 {[%emt 0:00:19]} 2. Bf4 {[%emt 0:00:20]} g6 {[%emt 0:00:37]} 3. e3 {[%emt 0:01:39]} d6 {[%emt 0:00:35]} 4. Nf3 {[%emt 0:00:14]} Nh5 {[%emt 0:00:18]} 5. Bg5 {[%emt 0:00:14]} h6 {[%emt 0:00:09]} 6. Bh4 {[%emt 0:00:11] A48: 1 d4 Nf6 2 Nf3 g6: Torre, London and Colle Systems} g5 {[%emt 0:00:08]} 7. Nfd2 {[%emt 0:00:39]} Ng7 {[%emt 0:00:22]} 8. Bg3 {[%emt 0:00:19]} Nf5 {[%emt 0:00:07]} 9. Bd3 {[%emt 0:00:35]} (9. c3 Bg7 10. Bd3 e6 11. Na3 Nd7 12. Qf3 Nxg3 13. hxg3 {½-½ (53) Le,Q (2739)-Kasparov,G (2812) Saint Louis 2017}) 9... Nxg3 {[%emt 0:02:11]} 10. hxg3 {[%emt 0:00:31]} Bg7 {[%emt 0:01:11]} 11. Nf3 {[%emt 0:00:43]} Nd7 {[%emt 0:04:12]} 12. Nbd2 {[%emt 0:01:51]} Nf6 {[%emt 0:02:36]} 13. c3 {[%emt 0:02:40]} c5 $146 {[%emt 0:04:13]} ({Predecessor:} 13... Be6 14. Qc2 c6 15. O-O-O {0-1 (34) Tavadyan,T-Coleby,R (2157) ICCF email 2016}) 14. Qc2 {[%emt 0:03:58]} Be6 {[%emt 0:03:11]} 15. Ne4 {[%emt 0:04:11]} Qc7 {[%emt 0:05:51]} 16. dxc5 {[%emt 0:01:19]} Nxe4 {[%emt 0:03:08]} 17. Bb5+ {[%emt 0:01:28]} Kf8 {[%emt 0:02:11]} 18. Qxe4 {[%emt 0:00:59]} Qxc5 {[%emt 0:00:37]} 19. Bd3 {[%emt 0:09:32]} Bd5 {[%emt 0:08:19]} 20. Qa4 $1 {[%emt 0:02:50]} Rc8 {[%emt 0:01:45]} 21. O-O {[%emt 0:01:32]} Bf6 {[%emt 0:03:11]} 22. Qb5 {[%emt 0:04:33]} Qxb5 {[%emt 0:04:50]} 23. Bxb5 {[%emt 0:00:18]} a6 {[%emt 0:05:32]} 24. Bd3 {[%emt 0:00:41]} e5 {[%emt 0:02:20]} 25. Bf5 {[%emt 0:01:25]} Rd8 {[%emt 0:00:23]} 26. Rfd1 {[%emt 0:01:08]} Bc6 {[%emt 0:00:59]} 27. e4 $11 {[%emt 0:00:31]} h5 {[%emt 0:01:34]} 28. Rd2 {[%emt 0:03:51]} Ke7 {[%emt 0:01:58]} 29. Rad1 {[%emt 0:00:58]} g4 {[%emt 0:05:29]} 30. Nh2 {[%emt 0:03:43]} Bg5 {[%emt 0:00:15]} 31. Re2 {[%emt 0:00:11]} Kf6 {[%emt 0:08:28]} 32. c4 {[%emt 0:01:44]} b5 {[%emt 0:02:16]} 33. b3 {[%emt 0:01:21]} bxc4 {[%emt 0:00:15]} 34. bxc4 {[%emt 0:00:23]} Ke7 {[%emt 0:00:07]} 35. Rb2 {[%emt 0:01:23]} Rb8 {[%emt 0:01:05]} 36. Rdb1 {[%emt 0:00:24]} Rxb2 {[%emt 0:00:57]} 37. Rxb2 {[%emt 0:00:13]} Ra8 {[%emt 0:07:16]} 38. Rb6 {[%emt 0:00:18]} Be8 {[%emt 0:00:26]} 39. Rb7+ {[%emt 0:03:59]} Kf8 {[%emt 0:00:23]} 40. Nf1 {[%emt 0:05:55]} a5 {[%emt 0:00:17]} 41. Rb6 {[%emt 0:01:51]} Ke7 {[%emt 0:01:44]} 42. f3 {[%emt 0:00:41]} gxf3 {[%emt 0:01:40]} 43. gxf3 {[%emt 0:00:11]} Ra7 {[%emt 0:00:21]} 44. Bc8 {[%emt 0:01:25]} Rc7 {[%emt 0:02:58]} 45. Ba6 {[%emt 0:01:17]} Bd7 {[%emt 0:03:45]} 46. Rb7 {[%emt 0:01:14]} Rxb7 {[%emt 0:01:35]} 47. Bxb7 {[%emt 0:00:06]} Kd8 {[%emt 0:01:03]} 48. Kf2 {[%emt 0:02:23]} Kc7 {[%emt 0:00:14]} 49. Bd5 {[%emt 0:00:03]} Be8 {[%emt 0:00:33]} 50. Ne3 {[%emt 0:00:24]} Kb6 {[%emt 0:00:52]} 51. Nf5 {[%emt 0:00:25]} Kc5 {[%emt 0:00:18]} 52. Ng7 {[%emt 0:00:23]} Ba4 {[%emt 0:00:57]} 53. Bxf7 {[%emt 0:00:10]} Bd1 {[%emt 0:00:11]} 54. Ne6+ {[%emt 0:00:16]} Kb4 {[%emt 0:00:43]} 55. Nxg5 {[%emt 0:00:10]} a4 {[%emt 0:00:05]} 56. Ne6 {[%emt 0:02:07]} Bb3 {[%emt 0:00:59]} 57. c5 {[%emt 0:06:25]} dxc5 {[%emt 0:01:14]} 58. g4 {[%emt 0:01:47]} hxg4 {[%emt 0:01:17]} 59. fxg4 {[%emt 0:00:07]} Bxa2 {[%emt 0:03:10]} 60. g5 {[%emt 0:00:09]} a3 {[%emt 0:01:22]} 61. g6 {[%emt 0:00:16]} Bc4 {[%emt 0:02:31]} 62. g7 {[%emt 0:06:48]} a2 {[%emt 0:00:01]} 63. g8=Q {[%emt 0:01:35]} a1=Q {[%emt 0:00:07]} 64. Qb8+ {[%emt 0:00:08]} Bb5 {[%emt 0:01:06]} 65. Nc7 {[%emt 0:01:16]} Qd4+ {[%emt 0:00:04]} 66. Kf3 {[%emt 0:02:35]} Qd1+ {[%emt 0:00:17]} 1/2-1/2

[Event "ISR-ch Youth 2019"]
[Site "Jerusalem"]
[Date "2019.04.12"]
[Round "3.6"]
[White "Neeman, Gal"]
[Black "Uritsky, Yonathan"]
[Result "1-0"]
[ECO "D93"]
[WhiteElo "1715"]
[BlackElo "1899"]
[Annotator "NA RC"]
[PlyCount "51"]
[EventDate "2019.04.11"]
[EventType "swiss"]
[EventCountry "ISR"]
[SourceTitle "playchess.com"]
[Source "ChessBase"]
[SourceQuality "1"]
[TimeControl "5400+30"]

1. d4 {[%emt 0:00:00]} Nf6 {[%emt 0:00:00]} 2. Bf4 {[%emt 0:00:00]} g6 {[%emt 0:00:21]} 3. e3 {[%emt 0:00:00]} Bg7 {[%emt 0:00:12]} 4. c4 {[%emt 0:00:00]} c5 {[%emt 0:00:10]} 5. Nc3 {[%emt 0:00:06]} cxd4 {[%emt 0:00:50]} 6. exd4 {[%emt 0:00:09]} O-O {[%emt 0:00:16]} 7. Nf3 {[%emt 0:00:30]} d5 {[%emt 0:01:25]} 8. Qb3 {[%emt 0:03:42]} dxc4 {[%emt 0:05:35]} 9. Bxc4 {[%emt 0:01:23]} Nc6 {[%emt 0:03:54]} 10. Rd1 {[%emt 0:07:11]} Na5 {[%emt 0:00:23]} 11. Qb4 {[%emt 0:00:20]} Nxc4 {[%emt 0:00:46]} 12. Qxc4 {[%emt 0:00:04]} Bg4 {[%emt 0:01:13]} 13. Qe2 {[%emt 0:16:49]} Nd5 {[%emt 0:02:34]} 14. Bg3 {[%emt 0:09:02]} Nxc3 {[%emt 0:04:10]} 15. bxc3 {[%emt 0:00:10]} Qa5 {[%emt 0:00:14]} 16. O-O {[%emt 0:08:17]} Rfe8 {[%emt 0:11:41]} 17. Qe4 {[%emt 0:02:02]} Bf5 {[%emt 0:00:28]} 18. Qxb7 {[%emt 0:01:32]} Qxc3 {[%emt 0:00:24]} 19. Rfe1 {[%emt 0:03:42]} Qa3 {[%emt 0:01:38]} 20. Re3 {[%emt 0:09:09]} Qa4 {[%emt 0:02:50]} 21. Rde1 {[%emt 0:00:50]} e6 {[%emt 0:00:31]} 22. Ng5 {[%emt 0:03:48]} Qxa2 {[%emt 0:22:55]} 23. Qxf7+ {[%emt 0:04:54]} Kh8 {[%emt 0:00:04]} 24. Be5 {[%emt 0:02:08]} Rg8 {[%emt 0:02:42]} 25. Qb7 {[%emt 0:00:35]} Raf8 {[%emt 0:01:25]} 26. Qe7 {[%emt 0:00:08]} 1-0

[Event "ISR-ch Youth 2019"]
[Site "Jerusalem"]
[Date "2019.04.12"]
[Round "3.7"]
[White "Umanskiy, Stanislav"]
[Black "Ribstein, Orel"]
[Result "0-1"]
[ECO "B45"]
[WhiteElo "1309"]
[BlackElo "1708"]
[Annotator "NA RC"]
[PlyCount "72"]
[EventDate "2019.04.11"]
[EventType "swiss"]
[EventCountry "ISR"]
[SourceTitle "playchess.com"]
[Source "ChessBase"]
[SourceQuality "1"]
[TimeControl "5400+30"]

1. e4 {[%emt 0:00:00]} c5 {[%emt 0:00:00]} 2. Nf3 {[%emt 0:00:00]} e6 {[%emt 0:00:00]} 3. d4 {[%emt 0:00:19]} cxd4 {[%emt 0:00:00]} 4. Nxd4 {[%emt 0:00:05]} Nf6 {[%emt 0:00:02]} 5. Nc3 {[%emt 0:00:25]} Nc6 {[%emt 0:00:18]} 6. Be3 {[%emt 0:01:12]} Bb4 {[%emt 0:00:21]} 7. f3 {[%emt 0:03:34]} d5 {[%emt 0:00:32]} 8. Nxc6 {[%emt 0:01:32]} bxc6 {[%emt 0:00:43]} 9. exd5 {[%emt 0:06:22]} exd5 {[%emt 0:02:57]} 10. a3 {[%emt 0:03:58]} Bd6 {[%emt 0:01:29]} 11. Be2 {[%emt 0:11:11]} Qc7 {[%emt 0:01:11]} 12. h3 {[%emt 0:02:03]} Bg3+ {[%emt 0:00:21]} 13. Bf2 {[%emt 0:00:56]} Bxf2+ {[%emt 0:00:21]} 14. Kxf2 {[%emt 0:00:23]} O-O {[%emt 0:01:15]} 15. Rb1 {[%emt 0:02:02]} Nh5 {[%emt 0:08:47]} 16. Qe1 {[%emt 0:05:25]} Ng3 {[%emt 0:01:56]} 17. Rg1 {[%emt 0:03:21]} h5 {[%emt 0:06:51]} 18. Qd1 {[%emt 0:03:33]} h4 {[%emt 0:00:27]} 19. Ke1 {[%emt 0:01:00]} Qb6 {[%emt 0:00:13]} 20. Kd2 {[%emt 0:01:10]} Qd4+ {[%emt 0:01:32]} 21. Bd3 {[%emt 0:01:02]} Qf2+ {[%emt 0:00:36]} 22. Ne2 {[%emt 0:02:11]} d4 {[%emt 0:00:12]} 23. Qe1 {[%emt 0:01:01]} Qe3+ {[%emt 0:00:57]} 24. Kd1 {[%emt 0:00:34]} Nxe2 {[%emt 0:07:19]} 25. Bxe2 {[%emt 0:00:32]} Bf5 {[%emt 0:00:38]} 26. Bc4 {[%emt 0:04:02]} Qg5 {[%emt 0:03:24]} 27. Qd2 {[%emt 0:04:34]} Qg6 {[%emt 0:01:09]} 28. Bd3 {[%emt 0:02:45]} c5 {[%emt 0:01:20]} 29. Bxf5 {[%emt 0:01:59]} Qxf5 {[%emt 0:00:06]} 30. Qf2 {[%emt 0:03:39]} c4 {[%emt 0:02:10]} 31. Qxh4 {[%emt 0:03:52]} d3 {[%emt 0:00:28]} 32. c3 {[%emt 0:03:12]} d2 {[%emt 0:00:41]} 33. Qe4 {[%emt 0:00:17]} Qc5 {[%emt 0:01:20]} 34. Rh1 {[%emt 0:03:29]} Rfe8 {[%emt 0:02:01]} 35. Qd4 {[%emt 0:02:32]} Qf5 {[%emt 0:00:38]} 36. Ra1 {[%emt 0:01:16]} Qb5 {[%emt 0:00:14]} 0-1

[Event "ISR-ch Youth 2019"]
[Site "Jerusalem"]
[Date "2019.04.12"]
[Round "3.8"]
[White "Faivishevsky, Noam"]
[Black "Ostrovsky Berman, Noam"]
[Result "0-1"]
[ECO "B90"]
[WhiteElo "1326"]
[BlackElo "1545"]
[Annotator "NA RC"]
[PlyCount "56"]
[EventDate "2019.04.11"]
[EventType "swiss"]
[EventCountry "ISR"]
[SourceTitle "playchess.com"]
[Source "ChessBase"]
[SourceQuality "1"]
[TimeControl "5400+30"]

1. e4 {[%emt 0:00:00]} c5 {[%emt 0:00:00]} 2. Nf3 {[%emt 0:00:00]} d6 {[%emt 0:00:00]} 3. d4 {[%emt 0:00:00]} cxd4 {[%emt 0:00:00]} 4. Nxd4 {[%emt 0:00:00]} Nf6 {[%emt 0:00:00]} 5. Nc3 {[%emt 0:00:00]} a6 {[%emt 0:00:00]} 6. f3 {[%emt 0:00:53]} e5 {[%emt 0:00:05]} 7. Nb3 {[%emt 0:00:06]} Be6 {[%emt 0:00:26]} 8. Be3 {[%emt 0:00:28]} b5 {[%emt 0:00:16]} 9. Qd2 {[%emt 0:00:35]} Be7 {[%emt 0:00:06]} 10. O-O-O {[%emt 0:01:52]} Nbd7 {[%emt 0:02:07]} 11. g4 {[%emt 0:01:27]} O-O {[%emt 0:02:01]} 12. h4 {[%emt 0:00:46]} b4 {[%emt 0:00:49]} 13. Ne2 {[%emt 0:00:14]} a5 {[%emt 0:00:24]} 14. Kb1 {[%emt 0:01:06]} Qb8 {[%emt 0:14:38]} 15. h5 {[%emt 0:02:42]} h6 {[%emt 0:07:58]} 16. g5 {[%emt 0:05:08]} hxg5 {[%emt 0:00:06]} 17. Bxg5 {[%emt 0:01:17]} Rc8 {[%emt 0:08:32]} 18. h6 {[%emt 0:01:03]} g6 {[%emt 0:00:30]} 19. h7+ {[%emt 0:11:12]} Kh8 {[%emt 0:00:11]} 20. Ng3 {[%emt 0:00:59]} a4 {[%emt 0:01:37]} 21. Na1 {[%emt 0:09:38]} b3 {[%emt 0:09:55]} 22. Bh6 {[%emt 0:08:40]} bxa2+ {[%emt 0:00:20]} 23. Kc1 {[%emt 0:00:24]} a3 {[%emt 0:00:36]} 24. b4 {[%emt 0:01:41]} Nc5 {[%emt 0:04:17]} 25. Bc4 {[%emt 0:05:52]} Nfxe4 {[%emt 0:09:53]} 26. Bg7+ {[%emt 0:02:10]} Kxg7 {[%emt 0:00:48]} 27. Nh5+ {[%emt 0:02:31]} Kh8 {[%emt 0:01:59]} 28. Qh6 {[%emt 0:04:35]} Bg5+ {[%emt 0:00:09]} 0-1

[Event "ISR-ch Youth 2019"]
[Site "Jerusalem"]
[Date "2019.04.12"]
[Round "3.9"]
[White "Levitan, Ronit"]
[Black "Sadka Darrell, Daria"]
[Result "1/2-1/2"]
[ECO "B01"]
[WhiteElo "2032"]
[BlackElo "1451"]
[Annotator "NA RC"]
[PlyCount "86"]
[EventDate "2019.04.11"]
[EventType "swiss"]
[EventCountry "ISR"]
[SourceTitle "playchess.com"]
[Source "ChessBase"]
[SourceQuality "1"]
[TimeControl "5400+30"]

1. e4 {[%emt 0:00:00]} d5 {[%emt 0:00:16]} 2. exd5 {[%emt 0:00:00]} Qxd5 {[%emt 0:00:19]} 3. Nc3 {[%emt 0:00:02]} Qd8 {[%emt 0:02:04]} 4. d4 {[%emt 0:00:14]} Nf6 {[%emt 0:00:57]} 5. Nf3 {[%emt 0:02:27]} Bg4 {[%emt 0:01:10]} 6. Bf4 {[%emt 0:09:17]} c6 {[%emt 0:07:26]} 7. Be2 {[%emt 0:02:36]} Bxf3 {[%emt 0:03:07]} 8. Bxf3 {[%emt 0:00:37]} e6 {[%emt 0:00:25]} 9. O-O {[%emt 0:04:58]} Be7 {[%emt 0:01:28]} 10. Ne4 {[%emt 0:02:45]} O-O {[%emt 0:11:26]} 11. c3 {[%emt 0:02:06]} Nd5 {[%emt 0:08:27]} 12. Bd2 {[%emt 0:01:13]} Nd7 {[%emt 0:01:02]} 13. Re1 {[%emt 0:04:52]} Qc7 {[%emt 0:03:28]} 14. Be2 {[%emt 0:01:37]} e5 {[%emt 0:06:35]} 15. Bd3 {[%emt 0:21:48]} exd4 {[%emt 0:12:04]} 16. cxd4 {[%emt 0:00:37]} N7f6 {[%emt 0:01:45]} 17. Qf3 {[%emt 0:16:26]} Rad8 {[%emt 0:05:06]} 18. Bg5 {[%emt 0:02:14]} Nxe4 {[%emt 0:02:47]} 19. Qxe4 {[%emt 0:04:10]} g6 {[%emt 0:02:46]} 20. Bxe7 {[%emt 0:00:21]} Rde8 {[%emt 0:01:06]} 21. Bxf8 {[%emt 0:04:39]} Rxe4 {[%emt 0:00:26]} 22. Bxe4 {[%emt 0:00:06]} Kxf8 {[%emt 0:00:40]} 23. Bxd5 {[%emt 0:00:09]} cxd5 {[%emt 0:00:13]} 24. b3 {[%emt 0:05:31]} Qa5 {[%emt 0:02:44]} 25. g3 {[%emt 0:01:17]} Qb4 {[%emt 0:00:20]} 26. Rad1 {[%emt 0:02:00]} Qa5 {[%emt 0:00:51]} 27. Re2 {[%emt 0:00:17]} Qc3 {[%emt 0:01:02]} 28. Kg2 {[%emt 0:00:38]} Qb4 {[%emt 0:00:56]} 29. Kf3 {[%emt 0:00:36]} Qc3+ {[%emt 0:01:37]} 30. Kg2 {[%emt 0:00:18]} Qb4 {[%emt 0:01:14]} 31. Rdd2 {[%emt 0:00:10]} Qc3 {[%emt 0:02:05]} 32. f4 {[%emt 0:01:10]} Kg7 {[%emt 0:02:18]} 33. Rc2 {[%emt 0:07:24]} Qd3 {[%emt 0:01:21]} 34. Red2 {[%emt 0:00:31]} Qe4+ {[%emt 0:00:42]} 35. Kg1 {[%emt 0:01:45]} Qe3+ {[%emt 0:00:54]} 36. Kf1 {[%emt 0:00:52]} Qf3+ {[%emt 0:02:00]} 37. Kg1 {[%emt 0:01:00]} Qe3+ {[%emt 0:00:14]} 38. Kg2 {[%emt 0:00:56]} Qe4+ {[%emt 0:00:29]} 39. Kh3 {[%emt 0:00:13]} Qf5+ {[%emt 0:00:37]} 40. Kg2 {[%emt 0:00:46]} Qe4+ {[%emt 0:00:11]} 41. Kg1 {[%emt 0:00:35]} Qe3+ {[%emt 0:00:14]} 42. Kf1 {[%emt 0:00:12]} Qf3+ {[%emt 0:00:14]} 43. Kg1 {[%emt 0:01:09]} Qe3+ {[%emt 0:00:11]} 1/2-1/2